bitfinex-derivatives/quotes_ETHF0:USTF0_20250403
["timestamp","ask_amount","ask_price","bid_price","bid_amount"]
[1743665391088,4.18858174,1821.0,1820.8,1.09857]
[1743665391297,2.52767,1820.9,1820.7,4.88864]
[1743665391497,1.4291,1820.8,1820.7,4.88864]
[1743665391901,1.09867,1820.7,1820.6,58.79273]
[1743665392095,8.45434174,1820.8,1820.6,58.79273]
[1743665392396,1.09873,1820.6,1820.5,0.00824605]
[1743665392692,4.30653,1820.6,1820.5,0.00824605]
[1743665392892,2.71878174,1820.6,1820.5,0.00824605]
[1743665393098,5.24661174,1820.6,1820.5,0.00824605]
[1743665393491,8.45441174,1820.6,1820.5,0.00824605]
[1743665394193,7.35568174,1820.6,1820.5,1.10703605]
[1743665394896,8.45441174,1820.6,1820.5,0.00824605]
[1743665400005,7.35568174,1820.6,1820.5,1.10703605]
[1743665400503,4.14788174,1820.6,1820.5,1.10703605]
[1743665400691,1.4291,1820.6,1820.5,1.10703605]
[1743665400889,2.8624,1820.7,1820.6,1.09873]
[1743665401205,2.8624,1820.7,1820.6,2.55393]
[1743665401605,5.58118174,1820.7,1820.5,1.41254605]
[1743665401796,1.3802,1820.6,1820.5,2.56223605]
[1743665402402,4.09898174,1820.6,1820.5,1.10703605]
[1743665402799,5.19771174,1820.6,1820.5,0.00824605]
[1743665403402,8.40551174,1820.6,1820.5,0.00824605]
[1743665403800,2.74727,1820.4,1820.0,4.30689]
[1743665404003,4.30681,1820.2,1820.0,1.09909]
[1743665404306,1.09903,1820.1,1820.0,2.49949]
[1743665404604,1.4445,1820.1,1819.9,58.7821]
[1743665404794,3.2078,1820.0,1819.6,4.6082]
[1743665405001,4.30691,1820.0,1819.9,1.09915]
[1743665405206,1.4445,1820.1,1820.0,1.09909]
[1743665406711,1.49524605,1820.2,1820.1,1.09903]
[1743665406900,0.00824605,1820.2,1820.1,1.09903]
[1743665407611,0.00824605,1820.2,1820.1,4.00533]
[1743665408203,0.00824605,1820.2,1820.1,5.49413]
[1743665410008,0.00824605,1820.2,1820.1,2.58783]
[1743665413511,0.00824605,1820.2,1820.1,1.09903]
[1743665413714,2.87974605,1820.2,1820.1,1.09903]
[1743665413907,6.69753779,1820.2,1820.0,1.09906]
[1743665414216,1.4671,1820.1,1820.0,1.09906]
[1743665414413,2.8813,1820.1,1820.0,1.09906]
[1743665414608,5.60008174,1820.1,1820.0,1.09906]
[1743665415014,6.69913174,1820.1,1820.0,1.09909]
[1743665415215,5.60008174,1820.1,1820.0,1.09909]
[1743665417213,9.90691174,1820.1,1820.0,1.17419219]
[1743665417909,9.90691174,1820.1,1820.0,0.07510219]
[1743665418116,9.90691174,1820.1,1820.0,1.17419219]
[1743665419212,8.80788174,1820.1,1820.0,1.17419219]
[1743665419411,5.60008174,1820.1,1820.0,1.17419219]
[1743665419715,5.60008174,1820.1,1820.0,2.58689219]
[1743665421112,9.90691174,1820.1,1820.0,1.17419219]
[1743665421315,8.80788174,1820.1,1820.0,1.17419219]
[1743665421613,9.90691174,1820.1,1820.0,1.17419219]
[1743665422117,5.60008174,1820.1,1820.0,1.17419219]
[1743665423116,6.69911174,1820.1,1820.0,1.17419219]
[1743665423512,5.60008174,1820.1,1820.0,1.17419219]
[1743665424421,6.69911174,1820.1,1820.0,1.17419219]
[1743665427724,1.09915,1819.9,1819.8,0.00824605]
[1743665427917,1.09935,1819.6,1819.5,1.09934]
[1743665428112,3.2078,1819.7,1819.3,4.15667]
[1743665428424,3.2078,1819.7,1819.4,1.07234574]
[1743665428425,2.61052,1819.5,1819.4,1.07234574]
[1743665428723,1.09952,1819.3,1819.2,58.80553]
[1743665428923,3.96901,1819.4,1819.3,1.0995]
[1743665429126,6.67954569,1819.4,1819.3,1.10774605]
[1743665429919,6.67954569,1819.4,1819.3,0.00824605]
[1743665430121,9.17954569,1819.4,1819.3,0.00824605]
[1743665430922,1.09964,1819.1,1819.0,1.09969]
[1743665431118,9.17954569,1819.4,1818.8,3.2078]
[1743665431119,8.80933,1819.3,1818.8,3.2078]
[1743665431315,1.4449,1819.0,1818.9,1.09974]
[1743665432025,2.5446,1819.0,1818.9,1.09974]
[1743665432725,2.5446,1819.0,1818.8,2.59535474]
[1743665433220,5.25513569,1819.0,1818.9,1.49]
[1743665433624,6.63453569,1819.0,1818.9,2.58976]
[1743665433818,6.63453569,1819.0,1818.9,1.49]
[1743665435123,2.8243,1819.0,1818.9,2.58976]
[1743665435428,0.00824605,1819.1,1819.0,1.0997]
[1743665435630,0.00824605,1819.1,1819.0,9.4036]
[1743665436126,0.00824605,1819.1,1819.0,5.0961]
[1743665436428,0.00824605,1819.1,1818.9,2.47685]
[1743665436429,3.81845174,1819.1,1818.9,2.47685]
[1743665436634,4.14778174,1819.1,1818.9,1.09975]
[1743665436822,4.1728,1819.0,1818.9,1.09975]
[1743665437128,2.71878174,1819.1,1819.0,1.0997]
[1743665437827,2.71878174,1819.1,1819.0,2.5057]
[1743665438328,3.81842174,1819.1,1818.9,1.09973]
[1743665438627,1.3909,1819.0,1818.9,1.09973]
[1743665439028,4.10143569,1819.0,1818.9,1.09973]
[1743665439430,4.10143569,1819.0,1818.9,2.50573]
[1743665440229,0.00824605,1819.1,1819.0,1.0997]
[1743665440428,0.00824605,1819.1,1819.0,2.6241]
[1743665440429,2.71878174,1819.1,1819.0,2.6241]
[1743665441326,0.00824605,1819.1,1819.0,2.6241]
[1743665443828,0.00824605,1819.1,1819.0,6.3441]
[1743665444228,1.10788605,1819.1,1819.0,5.2444]
[1743665444428,1.10788605,1819.1,1819.0,3.72]
[1743665444630,1.0997,1819.0,1818.9,3.2078]
[1743665444831,1.09976,1818.9,1818.8,2.53534474]
[1743665445028,1.4501,1818.9,1818.8,2.53534474]
[1743665445222,2.55801605,1819.1,1818.9,1.0997]
[1743665445423,1.0997,1819.0,1818.9,2.5297]
[1743665445835,2.6128,1819.0,1818.9,2.5297]
[1743665446024,1.5131,1819.0,1818.9,2.5297]
[1743665446224,0.00824605,1819.1,1819.0,1.0997]
[1743665446426,4.23188174,1819.1,1818.9,2.52973]
[1743665446931,2.6128,1819.0,1818.9,2.52973]
[1743665447332,1.09976,1818.9,1818.8,0.00557474]
[1743665447628,2.61286,1818.9,1818.8,1.10539474]
[1743665447833,4.22363569,1818.9,1818.8,1.10539474]
[1743665450032,5.32339569,1818.9,1818.8,1.10539474]
[1743665450227,4.22363569,1818.9,1818.8,1.10539474]
[1743665451432,0.00824605,1819.1,1819.0,1.0997]
[1743665452129,0.00824605,1819.1,1819.0,4.0478]
[1743665453131,2.71878174,1819.1,1819.0,1.0997]
[1743665453329,3.81842174,1819.1,1818.9,1.09971]
[1743665453538,7.02626174,1819.1,1819.0,1.0997]
[1743665453729,5.92658174,1819.1,1818.8,0.00557474]
[1743665453928,1.09976,1818.9,1818.8,1.10537474]
[1743665454432,2.71053569,1818.9,1818.8,1.10535474]
[1743665454633,3.81029569,1818.9,1818.8,2.60565474]
[1743665454835,3.81029569,1818.9,1818.8,1.50587474]
[1743665455026,3.81029569,1818.9,1818.8,0.00557474]
[1743665455027,5.13369569,1818.9,1818.8,0.00557474]
[1743665455226,5.13369569,1818.9,1818.8,1.10539474]
[1743665455422,4.03393569,1818.9,1818.8,1.10539474]
[1743665456035,4.03393569,1818.9,1818.8,0.00557474]
[1743665456036,8.34149569,1818.9,1818.8,0.00557474]
[1743665458338,7.24173569,1818.9,1818.8,1.10539474]
[1743665458838,8.34149569,1818.9,1818.8,0.00557474]
[1743665459235,8.34149569,1818.9,1818.8,1.10539474]
[1743665459736,8.34149569,1818.9,1818.8,0.00557474]
[1743665459939,8.34149569,1818.9,1818.8,1.10539474]
[1743665460535,8.34149569,1818.9,1818.8,0.00557474]
[1743665460835,1.1001,1818.4,1818.1,3.2078]
[1743665461140,1.1001,1818.4,1818.3,1.10009]
[1743665461639,2.7516,1818.5,1818.4,1.10006]
[1743665462040,1.10006,1818.4,1818.3,2.61958]
[1743665462443,1.10006,1818.4,1818.3,1.10008]
[1743665462944,3.85164,1818.5,1818.4,1.10006]
[1743665463138,6.56217569,1818.5,1818.4,1.10006]
[1743665463737,1.10015,1818.3,1818.2,1.10011]
[1743665464336,1.10015,1818.3,1818.0,63.21994]
[1743665464337,5.958,1818.4,1818.0,65.58204]
[1743665464536,5.91833569,1818.4,1818.1,4.19851]
[1743665464741,2.71053569,1818.4,1818.3,1.10012]
[1743665464943,3.2078,1818.8,1818.4,2.75016]
[1743665465137,4.30766,1818.8,1818.7,1.09985]
[1743665465342,7.01819569,1818.8,1818.7,1.09985]
[1743665465739,3.81039569,1818.8,1818.7,1.09985]
[1743665465941,2.9146,1818.9,1818.8,1.09982]
[1743665466243,0.00824605,1819.1,1818.9,1.09976]
[1743665466244,1.3741,1819.0,1818.9,1.09976]
[1743665466442,4.08463569,1819.0,1818.9,1.09976]
[1743665466846,4.08463569,1819.0,1818.9,2.54766]
[1743665467043,5.18433569,1819.0,1818.9,2.54766]
[1743665467249,7.29243569,1819.0,1818.6,3.721]
[1743665467543,1.09986,1818.8,1818.7,1.09987]
[1743665467849,3.90569,1818.9,1818.8,1.09982]
[1743665468041,1.09982,1818.8,1818.7,2.52074]
[1743665468241,1.09982,1818.8,1818.7,1.09984]
[1743665468242,3.94452,1818.8,1818.7,1.09984]
[1743665468448,6.65505569,1818.8,1818.7,1.09984]
[1743665468836,3.21604605,1819.1,1819.0,1.0997]
[1743665469148,10.18798174,1819.1,1819.0,1.0997]
[1743665469642,11.28763174,1819.1,1818.9,1.09972]
[1743665469842,1.09978,1818.9,1818.7,1.09983]
[1743665470035,2.8059,1818.8,1818.7,1.09983]
[1743665470345,1.46374605,1819.1,1819.0,1.0997]
[1743665470938,0.00824605,1819.1,1819.0,1.0997]
[1743665471141,0.00824605,1819.1,1819.0,2.597]
[1743665471643,0.00824605,1819.1,1819.0,5.8048]
[1743665471940,0.00824605,1819.1,1819.0,2.597]
[1743665472341,1.46524605,1819.1,1819.0,2.597]
[1743665472847,0.00824605,1819.1,1819.0,2.597]
[1743665473041,1e-08,1819.1,1819.0,8.3048]
[1743665473646,2.7065,1819.7,1819.6,1.09934]
[1743665473945,5.41703569,1819.7,1819.4,3.72]
[1743665474145,5.41703569,1819.7,1819.6,1.09934]
[1743665474345,6.82983569,1819.7,1819.6,1.09934]
[1743665476940,1.09934,1819.6,1819.5,0.00824604]
[1743665477145,1.09952,1819.4,1819.2,1.09954]
[1743665477345,2.8681,1819.3,1819.2,1.09954]
[1743665477545,4.2577,1819.3,1819.2,1.09954]
[1743665478448,1.09958,1819.2,1818.9,1.0997]
[1743665478651,5.74242,1819.2,1819.0,1.09968]
[1743665478845,8.45295569,1819.2,1819.0,1.09968]
[1743665479052,1.435,1819.1,1819.0,1.09968]
[1743665479550,4.14553569,1819.1,1818.8,8.3258]
[1743665479948,1.4474,1819.0,1818.9,1.09976]
[1743665480547,7.36573569,1819.0,1818.6,4.6161]
[1743665480849,1.09981,1818.9,1818.7,1.09986]
[1743665481044,1.09982,1818.8,1818.7,1.09986]
[1743665481240,1.09988,1818.7,1818.5,57.753]
[1743665481546,2.54728,1818.7,1818.5,58.85295]
[1743665481737,5.25781569,1818.7,1818.5,58.85295]
[1743665481941,1.4474,1818.6,1818.5,58.85295]
[1743665482352,1.4474,1818.6,1818.5,60.24335]
[1743665484252,1.47824605,1818.8,1818.5,59.1434]
[1743665484451,0.00824605,1818.8,1818.7,1.09988]
[1743665484752,0.00824605,1818.8,1818.7,2.48128]
[1743665484948,1.45324605,1818.8,1818.7,2.48128]
[1743665486558,0.00824605,1818.8,1818.7,2.48128]
[1743665486856,0.00824605,1818.8,1818.7,3.93548]
[1743665487860,0.00824605,1818.8,1818.7,7.65548]
[1743665488052,9.1718,1819.6,1819.3,1.09952]
[1743665488253,2.71053569,1819.6,1819.5,1.0994]
[1743665488450,2.7758,1819.7,1819.6,1.09934]
[1743665488653,1.4381,1819.7,1819.6,4.81934]
[1743665489552,1.4381,1819.7,1819.6,6.33264]
[1743665490161,0.00824605,1819.8,1819.7,1.09928]
[1743665490356,0.00824605,1819.8,1819.7,2.61258]
[1743665490655,0.00824605,1819.8,1819.7,5.82038]
[1743665491048,1e-08,1819.8,1819.7,5.82038]
[1743665491254,1e-08,1819.8,1819.7,7.24648]
[1743665492456,1e-08,1819.8,1819.7,9.74648]
[1743665493369,1e-08,1819.8,1819.7,7.24648]
[1743665493568,1e-08,1819.8,1819.7,9.53938]
[1743665495061,1.3796,1820.3,1820.2,1.09897]
[1743665495261,1.35253574,1820.3,1820.2,1.09897]
[1743665495764,1.35253574,1820.3,1820.2,2.62427]
[1743665496166,1.35253574,1820.3,1820.2,5.83207]
[1743665496362,4.06307143,1820.3,1820.2,4.30677]
[1743665497264,0.00824605,1820.4,1820.3,1.09891]
[1743665499670,3.81766174,1820.4,1820.1,57.722]
[1743665499969,1.3981,1820.3,1820.2,1.09897]
[1743665500165,2.7626,1820.3,1820.2,1.09897]
[1743665500364,5.47313569,1820.3,1820.2,1.09897]
[1743665501173,5.47313569,1820.3,1820.1,58.82099]
[1743665501471,1.09897,1820.2,1820.1,57.722]
[1743665501672,1.4603,1820.2,1820.1,58.82103]
[1743665501874,4.17083569,1820.2,1820.1,58.82103]
[1743665503563,5.26980569,1820.2,1820.1,57.722]
[1743665503758,1.09911,1820.0,1819.9,1.09913]
[1743665503971,2.71053569,1820.0,1819.8,1.09919]
[1743665504170,1.09921,1819.8,1819.7,1.09923]
[1743665504365,1.09921,1819.8,1819.6,1.09929]
[1743665504568,4.1506,1819.7,1819.6,1.09929]
[1743665504968,6.86113569,1819.7,1819.6,1.09929]
[1743665506072,1.4355,1819.7,1819.6,1.09929]
[1743665506268,1.4355,1819.7,1819.6,2.55169]
[1743665506572,9.1718,1820.2,1819.9,1.09915]
[1743665506774,11.85527143,1820.2,1820.1,1.09903]
[1743665507978,13.36417143,1820.2,1820.1,1.09903]
[1743665508267,10.15637143,1820.2,1820.1,1.09903]
[1743665509174,0.00824605,1820.4,1820.3,1.09891]
[1743665509480,3.81763174,1820.4,1820.3,1.09891]
[1743665509772,2.71878174,1820.4,1820.2,1.09893]
[1743665509978,1.4895,1820.3,1820.0,1.09907]
[1743665510177,1.09901,1820.2,1820.1,1.09903]
[1743665510475,1.09903,1820.1,1820.0,1.09904]
[1743665510773,2.55876,1820.1,1820.0,1.09909]
[1743665510974,5.26929569,1820.1,1819.9,1.09915]
[1743665511177,1.4895,1820.0,1819.9,1.09915]
[1743665511772,4.20003569,1820.0,1819.9,1.09915]
[1743665513775,1.09919,1819.9,1819.7,1.09924]
[1743665513977,1.4637,1819.8,1819.7,1.07217574]
[1743665514478,2.9796,1819.8,1819.7,1.07217574]
[1743665516171,1.0993,1819.7,1819.5,4.82458605]
[1743665516474,2.594,1819.7,1819.6,1.09934]
[1743665516681,4.20523569,1819.7,1819.6,1.09934]
[1743665518281,5.30451569,1819.7,1819.6,1.09934]
[1743665518679,1.09934,1819.6,1819.5,0.00824605]
[1743665518976,3.99034,1819.6,1819.5,0.00824605]
[1743665519175,6.70087569,1819.6,1819.5,0.00824605]
[1743665520779,1.09962,1819.2,1818.9,5.95718]
[1743665520984,3.2078,1819.3,1819.0,3.84893]
[1743665521285,1.5142,1819.4,1819.3,1.09952]
[1743665522490,4.22455569,1819.4,1819.3,1.09952]
[1743665522986,4.22455569,1819.4,1819.2,1.10777605]
[1743665523279,1.4471,1819.3,1819.2,1.10777605]
[1743665523692,1.4471,1819.3,1819.2,2.54967605]
[1743665523885,1.4471,1819.3,1819.2,0.00824605]
[1743665524088,4.15751569,1819.3,1819.2,0.00824605]
[1743665524797,4.15751569,1819.3,1819.2,1.10782605]
[1743665524798,3.05799569,1819.3,1819.2,1.10782605]
[1743665525197,0.00824605,1819.5,1819.4,1.09946]
[1743665525394,2.99504174,1819.5,1819.4,1.09946]
[1743665525694,4.09446174,1819.5,1819.3,2.53337]
[1743665525889,1.3759,1819.4,1819.3,2.53342]
[1743665527599,0.00824605,1819.5,1819.4,1.09946]
[1743665527794,2.48354605,1819.5,1819.4,1.09946]
[1743665528394,4.09444174,1819.5,1819.4,1.09946]
[1743665530096,2.99504174,1819.5,1819.4,1.09946]
[1743665530298,0.00824605,1819.5,1819.4,1.09946]
[1743665530600,1.09912,1820.0,1819.9,1.09913]
[1743665530801,1.61089569,1820.0,1819.9,1.09913]
[1743665531097,3.07799569,1820.0,1819.9,1.09913]
[1743665531294,4.17708569,1820.0,1819.9,1.09913]
[1743665532393,3.07799569,1820.0,1819.9,1.09913]
[1743665532888,4.17708569,1820.0,1819.9,1.09913]
[1743665534198,3.07799569,1820.0,1819.6,3.2078]
[1743665534400,0.02706426,1819.6,1819.5,10.9291]
[1743665534599,0.02706426,1819.6,1819.5,9.4482]
[1743665534802,4.02692,1819.8,1819.7,1.07221574]
[1743665534998,5.63781569,1819.8,1819.7,1.07221574]
[1743665535200,5.86729569,1819.8,1819.7,1.07221574]
[1743665536992,4.31511605,1820.1,1819.9,1.09915]
[1743665537195,1.45523574,1820.0,1819.9,1.09915]
[1743665537497,2.55432574,1820.0,1819.7,4.18216]
[1743665537808,4.16522143,1820.0,1819.9,1.07208574]
[1743665538108,2.68292143,1820.0,1819.9,1.07208574]
[1743665538308,1.61089569,1820.0,1819.9,1.07208574]
[1743665540403,3.12539569,1820.0,1819.9,1.07208574]
[1743665540701,4.22448569,1820.0,1819.9,1.07208574]
[1743665540899,3.12539569,1820.0,1819.9,1.07208574]
[1743665541402,0.00824605,1820.1,1820.0,1.09909]
[1743665541903,0.00824605,1820.1,1820.0,3.59909]
[1743665543104,0.00824605,1820.1,1820.0,1.09909]
[1743665546006,0.00824605,1820.1,1820.0,2.47459]
[1743665547010,0.00824605,1820.1,1820.0,4.97459]
[1743665547512,0.00824605,1820.1,1820.0,2.47459]
[1743665551814,0.00824605,1820.1,1820.0,4.97459]
[1743665552018,1.0985,1821.0,1820.5,2.74694]
[1743665552319,4.3395,1820.9,1820.8,1.09861]
[1743665552509,5.95039569,1820.9,1820.8,1.09861]
[1743665557514,1.09861,1820.8,1820.7,1.10687605]
[1743665557719,5.79651,1820.8,1820.7,0.00824605]
[1743665557911,7.40740569,1820.8,1820.7,1.10691605]
[1743665558806,7.40740569,1820.8,1820.7,0.00824605]
[1743665559211,1.09879,1820.5,1820.3,60.40599036]
[1743665559416,4.2256,1820.4,1820.3,60.40599036]
[1743665559717,4.2256,1820.4,1820.3,61.50490036]
[1743665561515,1.0987,1820.7,1820.6,1.09873]
[1743665561516,4.2126,1820.7,1820.6,1.09873]
[1743665563217,4.2126,1820.7,1820.6,2.48403]
[1743665565016,1.4207,1820.7,1820.6,2.48403]
[1743665565216,1.4207,1820.7,1820.6,5.69183]
[1743665568919,1.4207,1820.7,1820.6,1.09873]
[1743665570117,2.51937,1820.7,1820.6,1.09873]
[1743665570319,2.51943,1820.7,1820.5,4.81375]
[1743665570621,1.3761,1820.6,1820.5,4.81379]
[1743665571418,2.47483,1820.6,1820.5,4.81379]
[1743665571626,1.3761,1820.6,1820.5,1.09879]
[1743665574621,1.3761,1820.6,1820.5,2.48739]
[1743665577520,1.09885,1820.4,1820.3,57.19819036]
[1743665577723,7.19984,1820.5,1820.3,57.19819036]
[1743665577934,7.5076,1820.5,1820.4,1.09885]
[1743665578119,4.2998,1820.5,1820.4,2.58495]
[1743665580530,1.10675605,1821.0,1820.6,2.74684]
[1743665580724,1.4415,1820.9,1820.8,1.09855]
[1743665580924,2.54005,1820.9,1820.8,1.09855]
[1743665581130,1.4415,1820.9,1820.8,1.09855]
[1743665581926,0.00824605,1821.0,1820.9,1.09855]
[1743665582224,0.00824605,1821.0,1820.9,2.51705]
[1743665582424,0.00824605,1821.0,1820.8,4.30637]
[1743665582624,2.54829605,1821.0,1820.8,1.09857]
[1743665582927,7.90189,1820.9,1820.4,3.2078]
[1743665583123,1.09867,1820.7,1820.4,1.09879]
[1743665583326,2.8556,1820.6,1820.5,1.09878]
[1743665583520,4.2561,1820.6,1820.3,57.19819036]
[1743665583722,1.3838,1820.5,1820.4,1.09885]
[1743665583918,1.3838,1820.5,1820.3,57.19819036]
[1743665583919,4.5916,1820.5,1820.3,57.19819036]
[1743665584128,1.09885,1820.4,1820.3,50.19819036]
[1743665584333,2.48265,1820.4,1820.3,50.19819036]
[1743665584631,1.09891,1820.3,1820.2,0.00824605]
[1743665584833,2.48271,1820.3,1820.2,0.00824605]
[1743665585030,5.69051,1820.3,1820.2,0.00824605]
[1743665585232,11.90451,1820.3,1820.2,1e-08]
[1743665587727,12.00102023,1820.3,1820.2,1e-08]
[1743665587920,12.00102825,1820.3,1820.2,1e-08]
[1743665588123,12.00102734,1820.3,1820.2,1e-08]
[1743665588429,12.00102784,1820.3,1820.2,1e-08]
[1743665588832,11.90451,1820.3,1820.2,1e-08]
[1743665590125,12.00101837,1820.3,1820.2,1e-08]
[1743665592835,12.0009315,1820.3,1820.2,1e-08]
[1743665594339,8.28693477,1820.3,1820.2,1e-08]
[1743665594840,11.90551,1820.3,1820.2,1e-08]
[1743665595636,1.09928,1819.7,1819.6,2.6171]
[1743665595829,1.09928,1819.7,1819.6,2.59003574]
[1743665596136,4.30695,1820.0,1819.9,1.09915]
[1743665596332,4.27988574,1820.0,1819.9,1.09915]
[1743665596836,4.27988574,1820.0,1819.5,5.9626]
[1743665596837,1.09934,1819.6,1819.5,3.85414]
[1743665597040,2.74799,1819.9,1819.6,1.09929]
[1743665597041,1.09932,1819.7,1819.6,1.09929]
[1743665597241,1.09927,1819.8,1819.7,1.09924]
[1743665598935,1.09929,1819.7,1819.6,1.09929]
[1743665599129,1.09929,1819.7,1819.6,2.47779]
[1743665599737,1.09929,1819.7,1819.6,1.3785]
[1743665600938,1.0994,1819.5,1819.4,0.00824605]
[1743665601538,1.09958,1819.2,1819.1,1.4591]
[1743665603444,1.0997,1819.0,1818.9,60.6033]
[1743665603747,1.09976,1818.9,1818.8,1.4591]
[1743665604039,0.00824605,1819.1,1818.8,1.4591]
[1743665604247,0.00824605,1819.1,1819.0,1.0997]
[1743665605343,0.00824605,1819.1,1818.9,1.5069]
[1743665605548,0.00824605,1819.1,1819.0,1.0997]
[1743665607751,1.10788605,1819.1,1819.0,1.4063]
[1743665607951,2.59088605,1819.1,1819.0,2.9192]
[1743665609349,2.59088605,1819.1,1819.0,4.0189]
[1743665609550,0.00824605,1819.1,1819.0,4.0189]
[1743665609854,1.10788605,1819.1,1819.0,1.5129]
[1743665610044,2.59088605,1819.1,1819.0,1.5129]
[1743665610552,1.09976,1818.9,1818.8,1.09977]
[1743665610847,1.09976,1818.9,1818.8,2.51827]
[1743665611042,1.09982,1818.8,1818.7,2.52555]
[1743665611243,2.61472,1818.8,1818.7,2.52555]
[1743665611746,2.61472,1818.8,1818.7,3.94405]
[1743665613452,2.61472,1818.8,1818.7,1.4185]
[1743665613653,1.09988,1818.7,1818.6,1.4476]
[1743665613953,1.09994,1818.6,1818.5,2.8992]
[1743665614261,1.1,1818.5,1818.4,1.10001]
[1743665614447,2.4869,1818.5,1818.4,2.60331]
[1743665614846,1.1,1818.5,1818.4,2.60331]
[1743665615043,1.1,1818.5,1818.4,1.5033]
[1743665616545,1.10012,1818.3,1818.2,4.6037]
[1743665616845,1.10012,1818.3,1818.2,2.8621]
[1743665617251,4.30792,1818.3,1818.2,1.4662]
[1743665617455,1.10024,1818.1,1818.0,1.4318]
[1743665617655,4.30804,1818.1,1818.0,2.898]
[1743665617855,1.10042,1817.8,1817.3,0.43015448]
[1743665618153,1.10042,1817.8,1817.2,2.75183]
[1743665618154,1.10061,1817.5,1817.4,1.4662]
[1743665618355,4.30841,1817.5,1817.4,1.4662]
[1743665618659,1.10079,1817.2,1817.1,1.4318]
[1743665619050,4.30859,1817.2,1817.1,1.4318]
[1743665619358,1.10085,1817.1,1817.0,1.3267]
[1743665620053,1.10085,1817.1,1817.0,2.8116]
[1743665620453,4.30864,1817.2,1817.0,3.91251]
[1743665620957,1.4976,1817.4,1817.0,2.8116]
[1743665621155,8.02545,1817.5,1817.3,1.1007]
[1743665621351,8.02545,1817.5,1817.4,1.4849]
[1743665622051,4.30845,1817.5,1817.4,1.4849]
[1743665622557,3.2078,1817.5,1817.4,1.4849]
[1743665622857,4.30841,1817.5,1817.4,1.4849]
[1743665623056,1.10059,1817.6,1817.4,2.58557]
[1743665623358,0.00824605,1817.7,1817.6,1.10055]
[1743665623952,0.00824605,1817.7,1817.6,2.60005]
[1743665625663,1.41894605,1817.7,1817.6,1.10055]
[1743665625856,0.00824605,1817.7,1817.6,2.49995]
[1743665626759,0.00824605,1817.7,1817.6,8.71795]
[1743665627766,0.00824605,1817.7,1817.6,6.21795]
[1743665628160,1.41894605,1817.7,1817.6,2.49995]
[1743665629663,0.00824605,1817.7,1817.6,2.49995]
[1743665630360,0.00824605,1817.7,1817.6,3.89095]
[1743665630561,0.00824605,1817.7,1817.6,6.39095]
[1743665631663,0.00824605,1817.7,1817.6,3.89095]
[1743665631865,0.00824605,1817.7,1817.6,7.60895]
[1743665633058,0.00824605,1817.7,1817.6,2.49995]
[1743665633262,1.38544605,1817.7,1817.6,2.49995]
[1743665635665,0.00824605,1817.7,1817.6,4.99995]
[1743665636965,3.2078,1818.4,1817.7,2.75122]
[1743665637171,2.62141,1818.5,1818.3,1.10007]
[1743665637372,2.62146,1818.4,1818.3,1.10007]
[1743665638169,2.62146,1818.4,1818.2,1.10837605]
[1743665638371,1.4686,1818.3,1818.2,1.10837605]
[1743665639168,1.10829605,1818.5,1818.4,1.10006]
[1743665639369,2.57689605,1818.5,1818.3,1.10007]
[1743665639571,2.57689605,1818.5,1818.4,1.10006]
[1743665639872,1.47684605,1818.5,1818.4,1.10006]
[1743665640077,4.68464605,1818.5,1818.4,1.10006]
[1743665640273,1.47684605,1818.5,1818.4,1.10006]
[1743665640473,0.00824605,1818.5,1818.4,1.10006]
[1743665640970,0.00824605,1818.5,1818.4,2.51086]
[1743665641179,0.00824605,1818.5,1818.2,0.00824605]
[1743665641378,0.00824605,1818.5,1818.2,1.10841605]
[1743665641579,1.10006,1818.4,1818.2,1.10841605]
[1743665641768,2.52072,1818.3,1818.2,1.10841605]
[1743665642270,0.00824605,1818.5,1818.4,1.10006]
[1743665642577,2.52884605,1818.5,1818.4,1.10006]
[1743665645080,1.10006,1818.4,1818.3,1.1001]
[1743665645282,2.59286,1818.4,1818.3,1.1001]
[1743665645476,1.10012,1818.3,1818.2,0.00824605]
[1743665645674,4.01342,1818.3,1818.2,1.10842605]
[1743665645984,2.9133,1818.3,1818.2,1.10842605]
[1743665646383,4.01342,1818.3,1818.2,1.10842605]
[1743665646682,2.9133,1818.3,1818.2,1.10842605]
[1743665646884,4.01342,1818.3,1818.2,1.10842605]
[1743665647084,4.01342,1818.3,1818.2,0.00824605]
[1743665647582,4.01342,1818.3,1818.2,1.10842605]
[1743665647780,4.01342,1818.3,1818.2,0.00824605]
[1743665647983,4.01342,1818.3,1818.2,1.10842605]
[1743665648285,4.01342,1818.3,1818.2,0.00824605]
[1743665649084,4.01342,1818.3,1818.2,1.10842605]
[1743665649275,1.4928,1818.3,1818.2,1.10842605]
[1743665649775,2.59292,1818.3,1818.2,0.00824605]
[1743665649978,1.4928,1818.3,1818.2,1.10842605]
[1743665650283,3.21604605,1818.5,1818.4,1.10006]
[1743665650484,1.43264605,1818.5,1818.4,1.10006]
[1743665651187,1.43264605,1818.5,1818.4,2.52956]
[1743665651483,0.00824605,1818.5,1818.4,2.52956]
[1743665651683,0.00824605,1818.5,1818.4,1.10006]
[1743665651883,1.10828605,1818.5,1818.3,1.10008]
[1743665652079,1.43264605,1818.5,1818.3,1.10008]
[1743665652581,2.53268605,1818.5,1818.3,1.10008]
[1743665652780,0.00824605,1818.5,1818.4,1.10006]
[1743665652975,1.19392598,1819.3,1818.9,1.09975]
[1743665652976,3.88306,1819.1,1818.9,1.09975]
[1743665653179,1.4534,1819.0,1818.9,1.09975]
[1743665654783,1.4534,1819.0,1818.9,2.50305]
[1743665654983,1.4534,1819.0,1818.9,1.09975]
[1743665655874,1.09976,1818.9,1818.2,5.96636605]
[1743665656183,1.09996,1818.6,1818.4,1.10002]
[1743665656379,2.8621,1818.5,1818.4,1.10002]
[1743665656584,4.2495,1818.5,1818.4,1.10002]
[1743665656784,5.3495,1818.5,1818.4,1.10002]
[1743665656983,4.2495,1818.5,1818.4,1.10002]
[1743665657175,2.8621,1818.5,1818.4,1.10002]
[1743665657788,2.8621,1818.5,1818.3,1.10007]
[1743665657986,1.4141,1818.4,1818.3,1.10007]